bitfinex/quotes_ETHUSD_20251224
["timestamp","ask_amount","ask_price","bid_price","bid_amount"]
[1766598592927,6.0044,2945.0,2944.4,3.39626997]
[1766598593130,6.0044,2945.0,2944.5,0.03396162]
[1766598593950,6.0044,2945.0,2944.6,0.03396047]
[1766598594138,6.0044,2945.0,2944.5,0.03396162]
[1766598594662,9.40004179,2945.0,2944.5,0.03396162]
[1766598594830,6.0044,2944.9,2944.3,0.001]
[1766598595143,6.0044,2944.9,2944.3,0.34074915]
[1766598595344,6.0044,2944.9,2944.4,3.43023233]
[1766598595546,6.0044,2944.9,2944.4,0.03396277]
[1766598596951,6.0044,2944.8,2944.3,0.001]
[1766598597257,6.0044,2944.6,2944.3,0.001]
[1766598598556,6.0044,2944.6,2944.4,0.001]
[1766598598760,6.0044,2944.5,2944.0,0.001]
[1766598598933,6.0044,2944.2,2943.3,3.39850872]
[1766598599135,6.0044,2944.0,2943.4,3.43238282]
[1766598599455,6.8924,2944.0,2943.4,3.43238282]
[1766598599769,6.03836623,2943.9,2943.4,0.03497431]
[1766598600063,6.03836623,2943.9,2943.4,3.43239219]
[1766598600374,5.22798935,2944.4,2943.4,4.11560837]
[1766598600533,6.03836623,2944.3,2943.4,4.11560837]
[1766598600731,6.0044,2944.1,2943.4,0.001]
[1766598600957,6.0044,2943.9,2943.4,0.03497431]
[1766598601161,6.0044,2943.8,2943.4,0.03497431]
[1766598601549,6.0044,2943.8,2943.4,3.43233503]
[1766598601766,6.0044,2943.8,2943.4,0.03497431]
[1766598602471,6.0044,2943.8,2943.4,3.43240274]
[1766598602643,6.0044,2943.8,2943.4,0.03497431]
[1766598602843,6.0044,2943.8,2943.4,3.43239926]
[1766598603250,6.0044,2943.8,2943.4,3.43238586]
[1766598603540,6.0044,2943.8,2943.4,3.43239086]
[1766598604069,0.888,2944.2,2943.5,0.9707]
[1766598604244,7.0709,2944.2,2943.6,1.013872]
[1766598606050,6.24395731,2944.1,2943.4,0.001]
[1766598606249,7.63645818,2944.1,2943.4,0.001]
[1766598606657,7.63645818,2944.1,2943.4,0.03497431]
[1766598607283,7.63645818,2944.1,2943.4,0.001]
[1766598608077,6.1829,2944.0,2943.4,0.001]
[1766598608776,6.1829,2943.8,2943.4,0.001]
[1766598608981,0.06105731,2943.1,2942.2,0.001]
[1766598609192,6.1829,2942.8,2942.2,0.001]
[1766598609358,6.1829,2942.8,2942.2,0.03498817]
[1766598609785,6.1829,2942.8,2942.2,3.84507017]
[1766598610090,6.1829,2942.8,2942.2,0.44627878]
[1766598610261,6.1829,2942.8,2942.2,3.84509581]
[1766598610653,6.1829,2942.8,2942.2,0.44627878]
[1766598610854,6.1829,2942.7,2942.2,0.44627878]
[1766598611678,6.1829,2942.7,2942.2,0.001]
[1766598612099,6.1829,2942.6,2942.2,0.001]
[1766598613888,7.0709,2942.6,2942.2,0.001]
[1766598614396,6.2158821,2942.5,2942.0,0.001]
[1766598614698,7.60593359,2942.5,2942.0,0.001]
[1766598614873,7.6340088,2942.5,2942.0,0.001]
[1766598615274,7.57295149,2942.5,2942.0,0.001]
[1766598615799,7.6340088,2942.5,2941.7,0.001]
[1766598615977,6.1829,2942.3,2941.7,0.001]
[1766598616179,6.1829,2942.1,2941.7,0.001]
[1766598616584,6.2158821,2942.1,2941.7,0.001]
[1766598617098,6.1829,2942.1,2941.7,0.001]
[1766598617401,6.2158821,2942.1,2941.7,0.001]
[1766598617896,6.1829,2942.1,2941.7,0.001]
[1766598618818,0.888,2942.2,2941.7,0.03499394]
[1766598618989,6.1829,2942.3,2941.7,1.13679394]
[1766598619171,6.1829,2942.6,2941.8,0.2216]
[1766598619377,9.58128459,2942.6,2942.0,0.2216]
[1766598619571,0.0329821,2942.5,2942.0,0.2216]
[1766598620692,9.61435297,2942.5,2942.0,0.2216]
[1766598620881,6.1829,2942.5,2942.0,0.2216]
[1766598622994,9.61437599,2942.5,2942.0,0.2216]
[1766598623194,9.58139389,2942.5,2942.0,0.2216]
[1766598623705,6.1829,2942.5,2942.0,0.2216]
[1766598624414,0.0329821,2942.6,2942.1,0.29818932]
[1766598625405,6.1829,2942.5,2942.1,0.03398932]
[1766598625602,0.0329821,2942.4,2942.1,0.03398932]
[1766598625810,0.0329821,2942.4,2941.9,0.03399163]
[1766598626297,0.0329821,2942.4,2941.8,0.2806]
[1766598626596,0.0329821,2942.4,2941.8,0.81685339]
[1766598627595,6.2158821,2942.4,2941.8,0.81685339]
[1766598628402,9.61447522,2942.4,2941.9,0.001]
[1766598628707,9.58149312,2942.4,2941.9,0.001]
[1766598629708,6.1829,2942.3,2941.9,0.001]
[1766598629910,6.2158821,2942.2,2941.9,0.001]
[1766598632104,0.0329821,2942.2,2941.9,0.001]
[1766598632406,6.2172,2942.4,2941.9,0.001]
[1766598632609,9.64880014,2942.4,2941.9,0.03499163]
[1766598632807,9.61581804,2942.4,2941.9,0.03499163]
[1766598633012,0.0329821,2942.3,2941.9,0.03499163]
[1766598633209,6.2172,2942.4,2941.9,0.03499163]
[1766598633727,0.0329821,2942.5,2942.0,0.3425]
[1766598634035,9.6485977,2942.6,2942.1,0.03398932]
[1766598634320,6.2172,2942.4,2941.9,0.001]
[1766598634537,6.2172,2942.2,2941.9,0.001]
[1766598635323,0.06105731,2942.5,2941.9,0.001]
[1766598635502,6.31123941,2942.5,2941.9,0.3582]
[1766598635691,6.2521821,2942.5,2942.0,0.03399048]
[1766598636091,3.43353747,2942.5,2942.0,0.03399048]
[1766598636292,6.2172,2942.4,2942.0,0.03399048]
[1766598636719,6.2501821,2942.4,2942.0,0.03399048]
[1766598637124,6.2501821,2942.4,2941.9,0.03499163]
[1766598637425,6.2501821,2942.4,2941.9,0.001]
[1766598637919,0.0349821,2942.5,2942.0,0.3715]
[1766598638122,0.0349821,2942.5,2942.1,0.03398932]
[1766598638627,3.43345407,2942.5,2942.0,0.78605098]
[1766598638805,3.43345407,2942.5,2942.0,0.7520605]
[1766598639002,6.2172,2942.4,2941.9,0.001]
[1766598639306,6.2501821,2942.3,2941.9,0.001]
[1766598641435,6.2172,2942.2,2941.9,0.001]
[1766598641915,6.2172,2942.2,2941.7,0.001]
[1766598641916,6.2501821,2942.2,2941.7,0.001]
[1766598642123,0.06105731,2941.6,2941.0,0.001]
[1766598642308,6.28265731,2941.4,2940.7,0.001]
[1766598642496,6.2216,2941.1,2940.7,0.001]
[1766598642929,6.2641011,2941.1,2940.7,0.001]
[1766598643134,6.2216,2941.1,2940.7,0.001]
[1766598643306,6.2216,2941.1,2940.0,0.887]
[1766598643307,6.2216,2940.9,2940.1,0.01803453]
[1766598643507,0.10355986,2941.0,2940.1,0.01803453]
[1766598643508,6.2216,2940.7,2940.1,0.01803453]
[1766598643703,6.26410833,2940.6,2940.1,0.01803453]
[1766598643917,6.26410833,2940.6,2940.0,0.4209]
[1766598644123,6.26410833,2940.6,2940.0,3.8222241]
[1766598644640,6.26410833,2940.6,2940.1,0.0180482]
[1766598644938,6.26410833,2940.6,2940.1,0.74221148]
[1766598645132,6.2216,2940.6,2940.1,0.74221148]
[1766598645502,0.889,2940.7,2940.1,1.17691148]
[1766598645736,0.889,2940.7,2940.1,0.74221148]
[1766598645914,0.889,2940.7,2940.2,0.4347]
[1766598646110,0.889,2940.7,2940.3,0.01804354]
[1766598646317,0.04250544,2940.8,2940.3,0.01804354]
[1766598646733,6.26410544,2940.8,2940.3,0.01804354]
[1766598646921,6.26410544,2940.8,2940.2,0.4347]
[1766598647129,3.4429574,2940.8,2940.2,0.4347]
[1766598647330,6.2216,2940.7,2940.3,0.0180424]
[1766598647519,0.04250833,2940.6,2940.0,3.86667489]
[1766598647719,0.04250833,2940.6,2940.1,3.40113956]
[1766598647922,0.04250833,2940.6,2940.2,0.01804766]
[1766598648321,0.04250833,2940.6,2940.2,3.41910099]
[1766598648913,6.2216,2940.9,2940.2,7.27373016]
[1766598649150,0.93150255,2941.0,2940.3,0.4535]
[1766598649443,0.93150255,2941.0,2940.5,0.4595]
[1766598649620,0.93150255,2941.0,2940.6,0.01803488]
[1766598649817,6.26410255,2941.0,2940.6,0.01803488]
[1766598650016,6.26410255,2941.0,2940.4,0.01803488]
[1766598650436,6.26410255,2941.0,2940.5,3.40078217]
[1766598650636,6.26410255,2941.0,2940.6,0.0180361]
[1766598651031,6.26410255,2941.0,2940.5,0.0180361]
[1766598651343,4.07523326,2941.0,2940.1,3.40117475]
[1766598651644,4.07523326,2941.0,2940.2,3.40107233]
[1766598651645,6.2216,2940.9,2940.2,3.40107233]
[1766598651849,6.26410544,2940.8,2940.2,3.40107233]
[1766598652057,6.26410544,2940.8,2940.0,0.887]
[1766598652382,6.26410544,2940.8,2940.1,3.42021684]
[1766598653051,3.44294136,2940.8,2940.1,0.01904592]
[1766598653244,6.2216,2940.7,2940.1,3.42028745]
[1766598653449,0.04250833,2940.6,2940.1,3.42028745]
[1766598654230,6.26410833,2940.6,2940.1,0.01904592]
[1766598654429,6.26410833,2940.6,2940.1,3.42022011]
[1766598656019,6.26410833,2940.6,2940.1,0.01904592]
[1766598656227,6.93691083,2940.5,2940.1,0.001]
[1766598656436,6.26411122,2940.4,2940.1,0.001]
[1766598657132,9.6650132,2940.4,2940.0,0.01804994]
[1766598657328,6.28265731,2940.3,2939.8,0.001]
[1766598657570,6.2216,2940.1,2939.8,0.001]
[1766598657866,6.85411714,2940.1,2939.5,0.001]
[1766598658067,6.85411714,2940.1,2939.1,1.59604799]
[1766598658068,6.2216,2939.9,2939.1,4.11138397]
[1766598658233,0.10357431,2940.0,2939.1,3.93393598]
[1766598658234,6.2216,2939.7,2939.1,3.93393598]
[1766598658428,6.26412279,2939.6,2939.1,3.93393598]
[1766598658628,6.26412279,2939.6,2939.1,4.66768467]
[1766598659239,6.2216,2939.6,2939.1,8.07008676]
[1766598659455,6.2216,2939.6,2939.1,4.66768467]
[1766598659653,7.1106,2939.8,2939.1,8.07008676]
[1766598659872,7.1106,2939.8,2939.2,0.80710868]
[1766598659873,6.2216,2939.8,2939.2,0.80710868]
[1766598660035,6.2216,2939.8,2939.3,0.5435]
[1766598660747,6.2216,2940.1,2939.4,0.5488]
[1766598660951,6.2216,2940.4,2939.4,0.5488]
[1766598661153,6.2216,2940.4,2939.6,0.554]
[1766598662478,6.11161266,2940.3,2939.6,0.554]
[1766598662679,6.11161266,2940.3,2939.7,3.40170765]
[1766598663446,6.11161266,2940.3,2939.7,3.96610765]
[1766598664686,6.0691,2940.2,2939.5,3.40187011]
[1766598664990,6.0691,2940.0,2939.3,3.40310611]
[1766598665161,6.0691,2939.8,2939.4,3.40198358]
[1766598665649,6.0691,2939.8,2939.3,3.40311358]
[1766598665971,6.0691,2939.8,2939.3,0.001]
[1766598666141,6.0691,2939.8,2939.4,3.40202556]
[1766598667873,6.0691,2939.8,2939.3,0.001]
[1766598668367,6.0691,2939.6,2939.3,0.001]
[1766598668566,6.0691,2939.5,2939.3,0.001]
[1766598668960,6.0691,2939.5,2939.0,0.001]
[1766598669156,0.93152134,2939.7,2938.4,0.77352571]
[1766598669157,6.0691,2939.3,2938.4,0.77352571]
[1766598669356,6.0691,2939.0,2938.4,3.58062375]
[1766598669565,6.11163292,2938.9,2938.4,3.58062375]
[1766598669766,6.0691,2938.9,2938.4,6.98383638]
[1766598669967,6.0691,2938.9,2938.4,3.58062375]
[1766598670284,6.11163292,2938.9,2938.4,3.58062375]
[1766598670576,6.81169592,2938.9,2938.2,0.001]
[1766598670777,6.0691,2938.8,2938.2,0.001]
[1766598670984,4.14523588,2938.9,2938.2,0.001]
[1766598670985,6.0691,2938.6,2938.2,0.001]
[1766598671394,6.0691,2938.5,2938.2,0.001]
[1766598671568,1.53844726,2938.6,2937.2,4.36974264]
[1766598671569,6.0691,2938.3,2937.2,4.36974264]
[1766598671766,0.06105731,2938.8,2937.0,0.001]
[1766598671767,7.00064305,2938.2,2937.5,3.40424733]
[1766598671973,7.00064305,2938.2,2937.5,6.80850264]
[1766598671974,6.9581,2938.2,2937.5,6.80850264]
[1766598672182,6.0691,2938.2,2937.5,11.00960264]
[1766598672389,6.9581,2938.2,2937.6,1.10096026]
[1766598672971,0.0425445,2938.1,2937.6,1.10096026]
[1766598673291,0.0425445,2938.1,2937.0,0.889]
[1766598673292,6.0691,2938.0,2937.0,0.889]
[1766598673494,6.0691,2937.8,2937.0,0.001]
[1766598673695,6.0691,2937.6,2937.0,0.001]
[1766598673895,6.11165174,2937.6,2937.0,0.001]
[1766598674099,6.1727105,2937.5,2937.0,0.001]
[1766598675364,0.06105731,2937.1,2935.9,0.888]
[1766598675599,6.17271339,2937.3,2936.4,4.4052]
[1766598675782,6.0691,2937.3,2936.9,3.40492688]
[1766598675962,6.0691,2937.6,2936.9,11.21507767]
[1766598676175,6.0691,2937.6,2935.5,0.69725457]
[1766598676176,6.23100234,2938.1,2935.2,0.67403048]
[1766598676375,0.06105731,2937.4,2936.8,3.40506416]
[1766598676618,0.04255608,2937.3,2936.9,0.888]
[1766598676895,0.04255464,2937.4,2936.9,0.888]
[1766598677099,0.04255464,2937.4,2936.9,1.96921422]
[1766598677406,6.11165464,2937.4,2937.0,0.001]
[1766598677598,0.04255464,2937.4,2937.0,0.001]
[1766598677801,0.06105731,2938.2,2937.0,6.5201]
[1766598678001,6.1116445,2938.1,2937.2,6.5191]
[1766598678204,0.04254015,2938.4,2937.4,6.5191]
[1766598678727,6.11164015,2938.4,2937.4,6.5191]
[1766598678877,6.11164015,2938.4,2937.5,0.888]
[1766598679079,6.0691,2938.2,2937.1,3.40471894]
[1766598679326,6.0691,2938.0,2937.2,0.888]
[1766598679524,6.0691,2937.8,2937.0,0.001]
[1766598679689,0.1036047,2937.9,2937.1,0.888]
[1766598679690,6.0691,2937.6,2937.1,0.888]
[1766598680023,0.06105731,2937.9,2937.1,0.888]
[1766598680024,6.0691,2937.4,2937.1,0.888]
[1766598680173,0.04255608,2937.3,2937.2,0.888]
[1766598680374,6.0691,2937.4,2937.2,0.888]
[1766598681986,0.04255608,2937.3,2937.0,0.001]
[1766598682287,0.04255608,2937.3,2937.2,0.888]
[1766598682804,6.0691,2937.4,2937.2,0.888]
[1766598683396,0.1772,2937.2,2937.0,0.001]
[1766598684501,0.1772,2937.2,2937.1,0.001]
[1766598686706,0.1772,2937.2,2937.0,0.001]
[1766598686938,6.2463,2937.2,2936.9,0.888]
[1766598687143,0.04255898,2937.1,2936.6,0.888]
[1766598687303,0.04255898,2937.1,2936.6,4.2932928]
[1766598687635,0.04255898,2937.1,2936.6,4.29327305]
[1766598688421,6.0691,2937.0,2936.4,3.40548942]
[1766598688619,0.04256188,2936.9,2936.4,0.888]
[1766598689118,0.04256188,2936.9,2936.3,14.21836099]
[1766598689322,0.04256188,2936.9,2936.3,15.55140029]
[1766598689525,6.0691,2937.8,2936.4,6.5531553]
[1766598689725,0.04241648,2937.7,2936.4,6.5531553]
[1766598690018,6.11151648,2937.7,2936.4,6.5531553]
[1766598690319,6.72877386,2937.7,2936.6,6.5191]
[1766598690521,4.06377465,2937.7,2936.8,9.92416673]
[1766598690825,0.04241648,2937.7,2937.0,6.5191]
[1766598691023,0.04241648,2937.7,2937.1,0.03404718]
[1766598691226,0.04241648,2937.8,2937.1,0.03404718]
[1766598691418,6.0691,2937.9,2937.1,0.03404718]
[1766598692094,6.41471648,2937.8,2937.1,0.03404718]
[1766598692297,7.74304837,2937.8,2937.1,0.03404718]
[1766598692498,6.3723,2937.7,2937.0,0.888]
[1766598692723,0.04241648,2937.6,2937.1,0.03404718]
[1766598693124,0.04241648,2937.6,2937.1,3.43875372]
[1766598693311,0.04241648,2937.6,2937.1,6.46264718]
[1766598693514,6.3723,2937.7,2937.1,9.86732409]
[1766598693698,0.04241648,2937.6,2937.1,6.4286]
[1766598693897,0.04241648,2937.6,2937.1,9.86736102]
[1766598694127,6.3723,2937.7,2937.1,9.83331384]
[1766598694329,0.04241648,2937.6,2937.2,0.03404603]
[1766598694531,0.04241648,2937.6,2937.1,9.83331384]
[1766598694726,0.04241648,2937.6,2937.1,13.23803278]
[1766598694931,6.43335731,2938.3,2937.2,6.46264603]
[1766598695231,9.77566337,2938.3,2937.2,6.46264603]
[1766598695429,6.46,2938.7,2937.2,6.46264603]
[1766598695430,0.06105731,2938.6,2937.2,6.46264603]
[1766598695654,6.3723,2939.1,2937.4,6.4286]
[1766598695938,6.3723,2939.1,2937.1,18.43619288]
[1766598695939,6.41471648,2939.0,2937.6,6.4286]
[1766598696102,6.3723,2938.8,2937.8,6.4286]
[1766598696312,6.3723,2938.6,2937.9,0.889]
[1766598696646,0.04241648,2938.5,2938.0,3.40367597]
[1766598697711,6.3723,2938.6,2938.1,0.0340356]
[1766598697917,0.04241648,2938.8,2938.1,6.4626356]
[1766598698327,6.41471648,2938.8,2938.1,6.4626356]
[1766598699014,0.04241648,2938.8,2938.1,7.16376356]
[1766598699219,0.04241648,2938.8,2938.2,6.4286]
[1766598699530,9.81713593,2939.1,2938.4,6.4286]
[1766598699844,6.41471648,2939.0,2938.4,6.4286]
[1766598700013,6.41471648,2939.0,2938.4,6.46263212]
[1766598700210,0.04241648,2939.0,2938.4,6.46263212]
[1766598700417,0.04241648,2939.2,2938.4,6.46263212]
[1766598700661,0.68388813,2939.2,2938.4,6.46263212]
[1766598700951,0.04241648,2939.3,2938.6,6.4286]
[1766598701153,0.04241648,2939.3,2938.7,7.35062865]
[1766598701356,0.04241648,2939.3,2938.7,7.3166]
[1766598701726,13.17587633,2939.7,2938.7,7.3166]
[1766598701957,7.79972601,2939.6,2938.7,7.3166]
[1766598702158,7.75730953,2939.6,2938.7,7.3166]
[1766598702461,0.04241648,2939.5,2938.8,0.03402749]
[1766598702750,0.002,2939.3,2938.8,0.03402749]
[1766598703056,0.002,2939.3,2938.8,6.46262749]
[1766598703222,0.002,2939.3,2938.9,6.4286]
[1766598703421,0.002,2939.3,2939.0,0.03402517]
[1766598703616,0.04241648,2939.5,2939.1,7.63]
[1766598703817,0.04441648,2939.8,2939.2,0.03402286]
[1766598704327,3.44605726,2939.8,2939.1,7.63]
[1766598704728,10.06605726,2939.8,2939.1,7.63]
[1766598705049,10.02364078,2939.8,2939.1,7.63]
[1766598705217,0.04241648,2939.7,2939.1,7.63]
[1766598705418,1.00660573,2939.6,2939.1,7.63]
[1766598705659,0.04241648,2939.5,2939.1,7.63]
[1766598706437,0.002,2939.8,2939.3,6.742]
[1766598706749,0.002,2939.8,2939.4,6.77602054]
[1766598706950,0.06105731,2940.5,2939.6,6.742]
[1766598706951,6.62,2940.4,2939.6,6.742]
[1766598707148,0.66810573,2940.3,2939.6,6.77601823]
[1766598707338,7.28810573,2940.3,2939.6,6.742]
[1766598707661,7.28810573,2940.3,2939.6,6.77601823]
[1766598708337,6.62,2940.7,2939.6,6.77601823]
[1766598708536,6.62,2940.5,2939.7,0.888]
[1766598708773,6.62,2940.5,2939.8,0.03401591]
[1766598708938,6.62,2940.4,2939.7,0.888]
[1766598709138,7.62819262,2940.4,2939.7,0.888]
[1766598709668,7.62819262,2940.4,2939.8,0.888]
[1766598710074,7.62819262,2940.4,2939.9,0.03401476]
[1766598710576,1.00819262,2940.4,2939.8,7.63]
[1766598710939,4.40913948,2940.4,2939.9,0.03401476]
[1766598711255,7.40099464,2940.3,2939.4,6.742]
[1766598711437,7.40099464,2940.3,2939.6,0.888]
[1766598712075,7.40099464,2940.3,2939.4,10.14402689]
[1766598713864,3.40112917,2940.2,2939.4,6.742]
[1766598714071,10.02112917,2940.2,2939.4,6.742]
[1766598714365,1.42031476,2940.1,2939.5,0.03401939]
[1766598715275,6.62,2940.0,2939.3,0.888]
[1766598715589,6.62,2940.0,2939.4,0.888]
[1766598715882,6.62,2940.0,2938.9,0.888]
[1766598716039,6.62,2939.7,2938.9,0.888]
[1766598716371,6.62,2939.7,2938.9,7.63]
[1766598716561,6.62,2939.7,2938.9,11.03261789]
[1766598716756,6.62,2939.7,2939.0,6.742]
[1766598716958,6.62,2939.7,2937.9,3.60372293]
[1766598716959,6.68105731,2939.7,2938.6,3.40292917]
[1766598717267,1.43742412,2939.6,2938.9,6.742]
[1766598717472,1.43742412,2939.6,2939.1,6.742]
[1766598717857,1.43742412,2939.6,2939.1,0.888]
[1766598718673,1.43742412,2939.6,2939.1,7.63]
[1766598718977,0.80403148,2939.9,2939.3,6.742]
[1766598719147,3.40141605,2940.0,2939.5,6.742]
[1766598719346,10.02286254,2940.5,2939.5,7.66401939]
[1766598719572,10.02286254,2940.5,2939.7,6.742]
[1766598719777,0.002,2940.5,2939.9,6.742]
[1766598720062,10.36309881,2940.5,2939.6,6.742]
[1766598720382,13.76392391,2940.5,2939.7,0.888]
[1766598720579,6.62,2940.4,2939.3,6.742]
[1766598720874,6.62,2940.2,2939.4,0.92202054]
[1766598721175,1.37639239,2940.3,2939.5,6.742]
[1766598721381,1.37639239,2940.3,2939.6,0.03401823]
[1766598721557,1.37639239,2940.3,2939.6,6.99171823]
[1766598721881,1.37639239,2940.3,2939.6,10.35946668]
[1766598722186,1.24555431,2940.3,2939.8,6.9577]
[1766598722359,4.64659798,2940.3,2939.8,7.8457]
[1766598722559,0.4646598,2940.2,2939.8,0.888]
[1766598722755,7.1082598,2940.2,2939.6,0.03401823]
[1766598722963,7.1082598,2940.2,2939.7,0.888]
[1766598725088,10.50942755,2940.2,2939.7,0.888]
[1766598725305,6.6436,2940.1,2939.0,10.36016137]
[1766598725465,6.6436,2939.9,2939.1,6.9577]
[1766598726703,7.5336,2939.9,2938.6,3.40289471]
[1766598726888,6.6436,2939.7,2938.7,3.40282324]
[1766598727272,6.6436,2939.5,2938.7,0.03402865]
[1766598727468,6.6436,2939.5,2938.6,6.9577]
[1766598727782,6.6436,2939.5,2938.7,0.03402865]
[1766598728791,7.5336,2939.5,2938.6,0.03402981]
[1766598728997,14.11206968,2939.4,2938.5,0.03503096]
[1766598729293,14.11206968,2939.4,2938.5,6.99273096]
[1766598729465,10.71001484,2939.4,2938.5,10.36179211]
[1766598729789,1.50019749,2939.3,2938.5,10.36179211]
[1766598730159,1.50019749,2939.3,2938.5,3.40409211]
[1766598730361,1.50019749,2939.3,2938.6,6.9577]
[1766598730862,3.40228633,2939.2,2938.6,6.9577]
[1766598733986,4.9024223,2939.3,2938.6,6.9577]
[1766598734170,8.30464711,2939.3,2938.6,6.9577]
[1766598734375,0.89690071,2939.2,2938.6,6.9577]
[1766598734577,6.6436,2939.1,2938.5,0.001]
[1766598736166,10.04567356,2939.4,2938.7,6.9577]
[1766598736370,10.04567356,2939.4,2938.8,6.99172749]
[1766598736609,10.04567356,2939.4,2938.8,6.9577]
[1766598737305,6.6436,2939.6,2938.8,7.99376656]
[1766598737510,6.6436,2939.6,2938.9,6.9577]
[1766598737802,6.6436,2939.6,2939.0,0.03402517]
[1766598738585,10.04546364,2939.6,2939.0,0.03402517]
[1766598738795,3.40147624,2939.9,2939.1,6.9577]
[1766598739001,3.40112917,2940.2,2939.3,6.9577]
[1766598739180,10.04472917,2940.2,2939.4,7.87972054]
[1766598739379,13.44585834,2940.2,2939.4,7.8457]
[1766598740207,10.04472917,2940.2,2939.4,7.8457]
[1766598740413,10.04472917,2940.2,2939.5,0.81858939]
[1766598740783,10.04472917,2940.2,2939.2,1.03942265]
[1766598740784,6.6436,2940.1,2939.2,1.03942265]
[1766598740987,6.6436,2940.1,2939.2,1.92742265]
[1766598741187,6.6436,2940.1,2939.3,0.0340217]
[1766598741712,6.6436,2940.1,2939.3,6.9917217]
[1766598741908,6.6436,2940.1,2939.3,6.9577]
[1766598742611,6.6436,2940.1,2939.4,6.99172054]
[1766598742816,10.04486068,2940.1,2939.4,6.9577]
[1766598743994,14.87992368,2940.1,2939.4,6.9577]
[1766598744515,11.478663,2940.1,2939.4,6.9577]
[1766598746217,11.478663,2940.1,2939.4,6.9587]
[1766598746421,14.87992368,2940.1,2939.4,6.9587]
[1766598746606,14.88192368,2940.1,2939.4,6.9587]
[1766598748201,8.53719237,2940.0,2939.4,0.001]
[1766598750402,6.80295248,2939.9,2939.4,0.001]
[1766598750603,6.80295248,2939.9,2938.5,6.3642]
[1766598750604,7.049,2939.6,2938.5,6.3642]
[1766598750808,7.049,2939.4,2938.7,6.3632]
[1766598751206,0.03403818,2939.3,2938.7,6.3632]
[1766598751606,7.06223818,2939.6,2938.7,6.3632]
[1766598751937,0.03403818,2939.5,2938.7,6.3632]
[1766598752138,0.70622382,2939.4,2938.7,6.3632]
[1766598752323,3.40228633,2939.2,2938.6,0.03402981]
[1766598752505,7.06223818,2939.1,2938.5,0.03503096]
[1766598752700,7.0282,2939.1,2938.5,0.03503096]
[1766598753039,0.03403818,2939.0,2938.5,0.03503096]
[1766598753410,0.03403818,2939.0,2938.5,6.46783096]
[1766598753738,0.03403818,2939.1,2938.5,6.46783096]
[1766598754130,0.03403818,2939.1,2938.6,6.4328]
[1766598754443,3.40223073,2939.3,2938.7,6.46682865]
[1766598754444,0.03403818,2939.2,2938.7,6.46682865]
[1766598754939,3.43634283,2939.2,2938.7,6.46682865]
[1766598756314,0.03403818,2939.2,2938.7,6.46682865]
[1766598756730,3.43634346,2939.2,2938.7,6.46682865]
[1766598757032,4.8230038,2939.2,2938.7,0.03402865]
[1766598757236,13.86684874,2939.2,2938.5,0.889]
[1766598757416,13.83281056,2939.2,2938.5,0.889]
[1766598757614,7.06223818,2939.1,2938.5,0.001]
[1766598757817,7.0282,2939.1,2938.5,0.03503096]
[1766598758114,0.03403818,2939.0,2938.5,0.03503096]
[1766598759137,7.0282,2939.1,2938.5,6.46783096]
[1766598759339,3.40233705,2939.2,2938.6,6.4328]
[1766598759511,0.03403818,2939.1,2938.6,6.4328]
[1766598762425,3.43649183,2939.1,2938.6,6.4328]
[1766598764243,10.09279183,2939.1,2938.5,0.03503096]
[1766598764445,1.34950876,2939.0,2938.5,0.001]
[1766598764736,0.03403818,2938.9,2938.5,0.001]
[1766598766845,10.05876752,2939.1,2938.5,0.001]
[1766598766846,0.03403818,2939.0,2938.5,0.001]
[1766598767553,0.03403818,2939.0,2938.5,7.0836]
[1766598767843,0.03403818,2939.1,2938.5,7.0836]
[1766598768538,0.03403818,2939.1,2938.6,0.03402981]
[1766598768855,0.03403818,2939.1,2938.7,7.0826]
[1766598769248,3.40419842,2939.3,2938.7,7.0826]
[1766598769557,6.6583,2939.3,2938.7,7.0826]
[1766598769853,0.002,2939.3,2938.8,7.11662749]
[1766598770153,3.43821387,2939.3,2938.8,7.0826]
[1766598770852,0.03603818,2939.3,2938.9,0.03402633]
[1766598771156,3.43823448,2939.3,2938.9,7.0826]
[1766598774566,0.03603818,2939.3,2938.9,7.0826]
[1766598775343,3.40177112,2939.7,2939.1,7.0826]
[1766598775643,0.03403818,2939.6,2939.2,7.0826]
[1766598775830,6.69033818,2939.7,2938.9,8.2360117]
[1766598776036,0.03403818,2939.7,2939.0,7.0826]
[1766598777549,0.002,2939.3,2939.0,7.0826]
[1766598777749,0.002,2939.3,2939.1,8.24646344]
[1766598779469,0.002,2939.3,2939.2,0.03402286]
[1766598780384,6.6583,2939.3,2938.5,7.0836]
[1766598780585,0.04252857,2939.2,2938.7,7.0826]
[1766598780741,3.4017841,2939.7,2939.1,7.0826]
[1766598781076,0.02553818,2939.6,2939.2,7.11662286]
[1766598781282,0.02553818,2939.6,2939.2,7.0826]
[1766598782164,3.4273902,2939.6,2939.2,7.0826]
[1766598783147,0.02553818,2939.6,2939.2,7.0826]
[1766598783342,0.02553818,2939.7,2939.3,0.7422817]
[1766598783583,4.83443029,2940.1,2939.4,6.7559]
[1766598783584,6.7059,2940.1,2939.4,6.7559]
[1766598783873,10.10715904,2940.1,2939.5,6.78991939]
[1766598784069,10.10715904,2940.1,2939.5,6.7559]
[1766598784259,10.10715904,2940.1,2939.6,0.03401823]
[1766598784467,10.10715904,2940.1,2939.5,6.7559]
[1766598784649,10.10715904,2940.1,2939.6,6.78991823]
[1766598784851,6.7039,2940.0,2939.3,7.46416]
[1766598785049,6.72943818,2940.0,2939.4,6.78992054]
[1766598785346,6.72943818,2940.0,2939.4,6.7559]
[1766598785966,6.7039,2939.6,2938.9,0.001]
[1766598786152,6.72943818,2939.5,2938.9,3.40353376]
[1766598786346,6.72943818,2939.5,2938.9,0.001]
[1766598786547,6.72943818,2939.5,2938.9,1.01696051]
[1766598786972,10.13137983,2939.5,2938.9,1.01696051]
[1766598787276,10.10584165,2939.5,2938.9,1.01696051]
[1766598787480,6.7039,2939.5,2938.9,1.01696051]
[1766598787646,6.72943818,2939.5,2938.9,1.01696051]
[1766598788366,0.02553818,2939.6,2939.1,6.7559]